bitfinex/quotes_BTCUSD_20251208
["timestamp","ask_amount","ask_price","bid_price","bid_amount"]
[1765163030146,0.0093,91271.0,91270.0,0.08812048]
[1765163030558,0.0093,91271.0,91270.0,0.11031248]
[1765163030766,0.0093,91271.0,91270.0,0.13222548]
[1765163030963,0.0093,91271.0,91270.0,0.11031248]
[1765163031157,0.0093,91271.0,91270.0,0.08812048]
[1765163031629,0.0093,91271.0,91270.0,0.11003348]
[1765163031836,0.001,91271.0,91270.0,0.09761451]
[1765163032129,0.001,91271.0,91270.0,0.11980651]
[1765163032851,0.001,91271.0,91270.0,0.15902336]
[1765163032981,0.001,91271.0,91270.0,0.25203338]
[1765163033181,0.001,91271.0,91270.0,0.23012038]
[1765163033389,0.001,91271.0,91270.0,0.19090353]
[1765163033592,0.001,91271.0,91270.0,0.23012038]
[1765163035128,0.001,91271.0,91270.0,0.19090353]
[1765163036400,0.001,91271.0,91270.0,0.16871153]
[1765163038203,0.001,91271.0,91270.0,0.19090353]
[1765163039140,0.001,91271.0,91270.0,0.17358353]
[1765163039316,0.001,91271.0,91270.0,0.19090353]
[1765163043297,0.001,91271.0,91270.0,0.15139153]
[1765163043672,0.001,91271.0,91270.0,0.16871153]
[1765163044939,0.001,91271.0,91270.0,0.21281653]
[1765163045233,0.001,91271.0,91270.0,1.45886352]
[1765163045428,0.0083,91297.0,91294.0,0.03314562]
[1765163045623,0.22998809,91310.0,91294.0,0.03314562]
[1765163045624,0.01095122,91314.0,91308.0,0.02855]
[1765163045858,0.21902686,91313.0,91309.0,0.01653]
[1765163046086,0.0083,91313.0,91311.0,0.21903166]
[1765163046290,0.0083,91318.0,91315.0,0.0109511]
[1765163046509,0.0083,91318.0,91317.0,0.01653]
[1765163046949,0.0083,91318.0,91317.0,0.04054]
[1765163047386,0.01095062,91319.0,91318.0,0.21901487]
[1765163047387,0.0083,91319.0,91318.0,0.21901487]
[1765163047586,0.0083,91319.0,91318.0,0.34024913]
[1765163048418,0.0083,91319.0,91318.0,0.12123426]
[1765163048823,0.0083,91319.0,91318.0,0.12523426]
[1765163048824,0.0093,91319.0,91318.0,0.12523426]
[1765163049029,0.001,91319.0,91318.0,0.12523426]
[1765163049252,0.001,91319.0,91318.0,0.14742626]
[1765163049961,0.001,91319.0,91318.0,0.15642626]
[1765163050297,0.001,91319.0,91318.0,0.13423426]
[1765163050954,0.001,91319.0,91318.0,0.02953]
[1765163051401,0.22001247,91319.0,91318.0,0.02953]
[1765163052359,0.22831247,91319.0,91318.0,0.02953]
[1765163056399,0.22831247,91319.0,91318.0,0.03415165]
[1765163058307,0.0093,91319.0,91318.0,0.05676165]
[1765163058506,0.0093,91319.0,91318.0,0.11171872]
[1765163061737,0.0093,91319.0,91318.0,0.15123072]
[1765163065252,0.0093,91319.0,91318.0,0.12903872]
[1765163068203,0.00919044,91319.0,91318.0,0.12903872]
[1765163068421,0.00919044,91319.0,91318.0,0.15123072]
[1765163068608,0.00919044,91319.0,91318.0,0.37024559]
[1765163068753,0.00919044,91319.0,91318.0,0.39961151]
[1765163069139,0.00919044,91319.0,91318.0,0.38720815]
[1765163069358,0.00919044,91319.0,91318.0,0.40940015]
[1765163071847,0.00919044,91319.0,91318.0,0.37024559]
[1765163072214,0.00089044,91319.0,91318.0,0.75576858]
[1765163073009,0.01924882,91334.0,91330.0,0.0109493]
[1765163073227,0.01924882,91334.0,91333.0,0.02793]
[1765163073434,0.0083,91334.0,91333.0,0.05054]
[1765163074144,0.0083,91334.0,91333.0,0.05065117]
[1765163075039,0.0093,91334.0,91333.0,0.05065117]
[1765163075453,0.0083,91334.0,91333.0,0.05065117]
[1765163075658,0.0083,91334.0,91333.0,0.16153299]
[1765163075898,0.0083,91334.0,91333.0,0.16353299]
[1765163076618,0.0083,91334.0,91333.0,0.13234099]
[1765163076942,0.0083,91334.0,91333.0,0.14234099]
[1765163078119,0.0083,91334.0,91333.0,0.36131989]
[1765163078288,0.0083,91334.0,91333.0,0.36631989]
[1765163078289,0.0093,91334.0,91333.0,0.36631989]
[1765163078655,0.0093,91334.0,91333.0,0.37050126]
[1765163079433,0.0093,91334.0,91333.0,0.15152236]
[1765163079763,0.0093,91334.0,91333.0,0.37050126]
[1765163080427,0.0093,91334.0,91333.0,0.39269326]
[1765163080853,0.001,91334.0,91333.0,0.45521625]
[1765163081206,0.21890267,91365.0,91351.0,0.022192]
[1765163081417,0.0083,91367.0,91366.0,0.01629]
[1765163081767,0.0083,91367.0,91366.0,0.0389]
[1765163082841,0.00869043,91367.0,91366.0,0.0389]
[1765163083033,0.00869043,91367.0,91366.0,0.08031787]
[1765163083169,0.00969043,91367.0,91366.0,0.08431787]
[1765163083373,0.00139043,91367.0,91366.0,0.10650987]
[1765163083777,0.00139043,91367.0,91366.0,0.08431787]
[1765163083984,0.00139043,91367.0,91366.0,0.10650987]
[1765163085477,0.00139043,91367.0,91366.0,0.08431787]
[1765163085680,0.00139043,91367.0,91366.0,0.10650987]
[1765163088276,0.00139043,91367.0,91366.0,0.0519]
[1765163088511,0.00039043,91367.0,91366.0,0.06522]
[1765163088715,0.00139043,91367.0,91366.0,0.06122]
[1765163088923,0.00139043,91367.0,91366.0,0.0439]
[1765163089134,0.00039043,91367.0,91366.0,0.0509]
[1765163089330,0.00039043,91367.0,91366.0,0.0389]
[1765163089740,0.00039043,91367.0,91366.0,0.0489]
[1765163090528,0.00039043,91367.0,91366.0,0.0519]
[1765163090863,0.00039043,91367.0,91366.0,0.02929]
[1765163090864,0.00869043,91367.0,91366.0,0.02929]
[1765163091059,0.01019346,91367.0,91366.0,0.02929]
[1765163091659,0.01019346,91367.0,91366.0,0.04897]
[1765163091857,0.01019346,91367.0,91366.0,0.03897]
[1765163092285,0.01019346,91367.0,91366.0,0.04497]
[1765163093526,0.01019346,91367.0,91366.0,0.006]
[1765163093724,0.01019346,91367.0,91366.0,0.00921327]
[1765163095954,0.01019346,91367.0,91366.0,0.04759327]
[1765163096157,0.01019346,91367.0,91366.0,0.07650267]
[1765163096966,0.01019346,91367.0,91366.0,0.07850267]
[1765163097179,0.01019346,91367.0,91366.0,0.07250267]
[1765163097379,0.01019346,91367.0,91366.0,0.07050267]
[1765163097682,0.01019346,91367.0,91366.0,0.01221327]
[1765163097887,0.01019346,91367.0,91366.0,0.01421327]
[1765163098938,0.01019346,91367.0,91366.0,0.00521327]
[1765163099138,0.01019346,91367.0,91366.0,0.01221327]
[1765163099338,0.01019346,91367.0,91366.0,0.01021327]
[1765163099807,0.01019346,91367.0,91366.0,0.01121327]
[1765163100091,0.01019346,91367.0,91366.0,0.01021327]
[1765163100515,0.01019346,91367.0,91366.0,0.00321327]
[1765163100934,0.02040572,91367.0,91366.0,0.00821327]
[1765163105461,0.01019346,91367.0,91366.0,0.00821327]
[1765163105717,0.01019346,91367.0,91366.0,0.005]
[1765163105922,0.01019346,91367.0,91351.0,0.01211]
[1765163105923,0.21893335,91352.0,91351.0,0.01211]
[1765163106103,0.21893335,91352.0,91351.0,0.02738]
[1765163106758,0.21893335,91352.0,91339.0,0.01732]
[1765163106759,0.21896451,91339.0,91335.0,0.0292934]
[1765163106926,0.21896451,91339.0,91332.0,0.01094906]
[1765163107135,0.21896451,91339.0,91331.0,0.02345]
[1765163107347,0.21896451,91339.0,91331.0,0.03439918]
[1765163107556,0.21896451,91339.0,91331.0,0.02345]
[1765163107757,0.21896451,91339.0,91327.0,0.0292934]
[1765163107758,0.2189741,91335.0,91327.0,0.0292934]
[1765163107900,0.2189741,91335.0,91324.0,0.01095002]
[1765163107901,0.2189741,91335.0,91334.0,0.00011117]
[1765163108099,0.2189741,91335.0,91334.0,0.01538117]
[1765163109236,0.2189741,91335.0,91334.0,0.01938117]
[1765163109552,0.2189741,91335.0,91334.0,0.02038117]
[1765163109982,0.2189741,91335.0,91334.0,0.07456243]
[1765163110474,0.2189741,91335.0,91334.0,0.00511117]
[1765163111622,0.2189741,91335.0,91334.0,0.00411117]
[1765163111838,0.2199741,91335.0,91334.0,0.00411117]
[1765163112011,0.25949009,91335.0,91334.0,0.00104936]
[1765163112253,0.58249009,91335.0,91334.0,0.00104936]
[1765163113002,0.5602941,91335.0,91334.0,0.00104936]
[1765163114803,0.2372941,91335.0,91334.0,0.00104936]
[1765163118613,0.2372941,91335.0,91334.0,0.01647936]
[1765163118614,0.2199741,91335.0,91334.0,0.01647936]
[1765163119204,0.2189741,91335.0,91334.0,0.00104936]
[1765163129142,0.5419741,91335.0,91334.0,0.00104936]
[1765163129345,0.6619048,91335.0,91334.0,0.00104936]
[1765163129588,0.92900079,91335.0,91334.0,0.00104936]
[1765163129804,0.92900079,91335.0,91298.0,0.02461]
[1765163129805,0.0109529,91300.0,91294.0,0.01095362]
[1765163129956,0.01095278,91301.0,91299.0,0.01543]
[1765163130159,0.01095254,91303.0,91301.0,0.01543]
[1765163130367,0.01095254,91303.0,91302.0,0.03048697]
[1765163130565,0.01095254,91303.0,91302.0,0.04591697]
[1765163131513,0.01084309,91303.0,91302.0,0.04591697]
[1765163131825,0.01084309,91303.0,91302.0,0.04891697]
[1765163132204,0.01084309,91303.0,91302.0,0.05691697]
[1765163132405,0.01084309,91303.0,91302.0,0.011]
[1765163132812,0.02726516,91303.0,91302.0,0.011]
[1765163133216,0.02726516,91303.0,91302.0,0.008]
[1765163133396,0.02726516,91303.0,91296.0,0.00011692]
[1765163133397,0.21906284,91298.0,91296.0,0.00011692]
[1765163133600,0.22056587,91298.0,91296.0,0.00011692]
[1765163134631,0.22456587,91298.0,91296.0,0.00111692]
[1765163134875,0.02219599,91297.0,91296.0,0.00111692]
[1765163135065,0.02369902,91297.0,91296.0,0.00111692]
[1765163135620,0.00150303,91297.0,91296.0,0.00111692]
[1765163135823,0.00150303,91297.0,91296.0,0.00123168]
[1765163136445,0.00550303,91297.0,91296.0,0.00123168]
[1765163139992,0.00550303,91297.0,91296.0,0.01666168]
[1765163140213,0.00550303,91297.0,91296.0,0.04127168]
[1765163140552,0.00550303,91297.0,91296.0,0.09148605]
[1765163140553,0.004,91297.0,91296.0,0.09148605]
[1765163141032,0.004,91297.0,91296.0,0.13083325]
[1765163141424,0.01095206,91307.0,91303.0,0.01095254]
[1765163141760,0.01095206,91307.0,91306.0,0.01543]
[1765163142162,0.01095206,91307.0,91306.0,0.03973]
[1765163142367,0.01095206,91307.0,91306.0,0.01543]
[1765163142714,0.21905325,91302.0,91300.0,0.0243]
[1765163143139,0.01095218,91306.0,91302.0,0.01095266]
[1765163143337,0.01095218,91306.0,91305.0,0.01502]
[1765163143758,0.01095218,91306.0,91305.0,0.03932]
[1765163143936,0.01095206,91307.0,91305.0,0.03932]
[1765163144168,0.01095206,91307.0,91306.0,0.03932]
[1765163145516,0.01095206,91307.0,91306.0,0.01502]
[1765163145662,0.01095206,91307.0,91306.0,0.03932]
[1765163146508,0.01495206,91307.0,91306.0,0.03932]
[1765163146660,0.004,91307.0,91306.0,0.03932]
[1765163146867,0.004,91307.0,91306.0,0.04014131]
[1765163147070,0.01095146,91312.0,91309.0,0.01095182]
[1765163147585,0.01095146,91312.0,91311.0,0.02702]
[1765163147983,0.01095146,91312.0,91311.0,0.05132]
[1765163148171,0.01095134,91313.0,91311.0,0.05132]
[1765163148521,0.01095134,91313.0,91312.0,0.09933004]
[1765163148817,0.01095134,91313.0,91309.0,0.002]
[1765163148818,0.22998072,91312.0,91309.0,0.002]
[1765163149383,0.0109523,91305.0,91300.0,0.24201033]
[1765163149589,0.01095206,91307.0,91302.0,0.23000549]
[1765163150227,0.01095158,91311.0,91309.0,0.002]
[1765163150426,0.01095158,91311.0,91310.0,0.01502]
[1765163150631,0.01095158,91311.0,91310.0,0.03932]
[1765163152346,0.21903405,91310.0,91309.0,0.003]
[1765163152547,0.21903405,91310.0,91301.0,0.0243]
[1765163152548,0.23000118,91304.0,91301.0,0.0243]
[1765163152925,0.23000118,91304.0,91303.0,0.01592934]
[1765163153354,0.23000087,91304.0,91303.0,0.01592934]
[1765163153676,0.23000087,91304.0,91303.0,0.00090934]
[1765163154047,0.25219686,91304.0,91303.0,0.00590934]
[1765163154448,0.25219686,91304.0,91303.0,0.00290934]
[1765163154793,0.25219686,91304.0,91303.0,0.00690934]
[1765163155485,0.25219686,91304.0,91303.0,0.00490934]
[1765163155923,0.26019686,91304.0,91303.0,0.00190934]
[1765163156570,0.23800087,91304.0,91303.0,0.00190934]
[1765163160973,0.23800087,91304.0,91303.0,0.04146934]
[1765163161173,0.23800087,91304.0,91303.0,0.06987754]
[1765163161353,0.23800087,91304.0,91303.0,0.04146934]
[1765163161557,0.01895242,91304.0,91303.0,0.04146934]
[1765163161895,0.01095218,91306.0,91303.0,0.04046934]
[1765163162096,0.22998908,91309.0,91306.0,0.01557]
[1765163162310,0.22998908,91309.0,91307.0,0.02820498]
[1765163162458,0.22998908,91309.0,91308.0,0.01557]
[1765163162663,0.22998908,91309.0,91308.0,0.03956]
[1765163164792,0.23798908,91309.0,91308.0,0.04056]
[1765163165181,0.23798908,91309.0,91308.0,0.01657]
[1765163165401,0.21905325,91302.0,91301.0,0.01248]
[1765163165681,0.23000251,91304.0,91301.0,0.01248]
[1765163165919,0.01095242,91304.0,91303.0,0.01557]
[1765163166093,0.22999632,91306.0,91303.0,0.01557]
[1765163167151,0.22999632,91306.0,91303.0,0.01857]
[1765163167359,0.22999632,91306.0,91305.0,0.01642066]
[1765163168085,0.21903885,91308.0,91305.0,0.01642066]
[1765163168086,0.01095194,91308.0,91305.0,0.05136296]
[1765163168210,0.01095194,91308.0,91307.0,0.01557]
[1765163168615,0.22998437,91311.0,91307.0,0.03956]
[1765163168820,0.22998437,91311.0,91309.0,0.01557]
[1765163169226,0.22998437,91311.0,91309.0,0.07190464]
[1765163169938,0.01095242,91304.0,91290.0,0.07480786]
[1765163170139,0.21906524,91297.0,91285.0,0.0410534]
[1765163170365,0.21906524,91297.0,91285.0,0.01176]
[1765163170689,0.21906524,91297.0,91277.0,0.05105786]
[1765163170690,0.25151614,91297.0,91277.0,0.012]
[1765163171347,0.25151614,91297.0,91278.0,0.02399]
[1765163172105,0.25951614,91297.0,91296.0,0.00111692]
[1765163173321,0.58251614,91297.0,91296.0,0.00111692]
[1765163174589,0.82741614,91297.0,91296.0,0.00111692]
[1765163174721,0.01095746,91262.0,91259.0,0.02343782]
[1765163174928,0.0109571,91265.0,91261.0,0.01095758]
[1765163175157,0.0109571,91265.0,91264.0,0.01733423]
[1765163175364,0.01095674,91268.0,91264.0,0.02829145]
[1765163175549,0.01095674,91268.0,91267.0,0.01528]
[1765163176191,0.21909713,91284.0,91267.0,0.01528]
[1765163176192,0.0109553,91280.0,91271.0,0.01095638]
[1765163176539,0.01095566,91277.0,91271.0,0.01095638]
[1765163176706,0.0109559,91275.0,91272.0,0.06772452]
[1765163176922,0.0109559,91275.0,91273.0,0.03202684]
[1765163177113,0.23007394,91275.0,91274.0,0.0504]
[1765163177328,0.23007394,91275.0,91274.0,0.02678]
[1765163177550,0.21912765,91271.0,91270.0,0.0115]
[1765163179160,0.21912525,91272.0,91270.0,0.0345]
[1765163179369,0.01095578,91276.0,91272.0,0.01528]
[1765163179698,0.01095578,91276.0,91275.0,0.02678]
[1765163180643,0.01095578,91276.0,91275.0,0.0504]
[1765163181239,0.01095578,91276.0,91275.0,0.0524]
[1765163181808,0.21907791,91293.0,91275.0,0.109524]
[1765163182020,0.01742206,91310.0,91275.0,0.109524]
[1765163182021,0.2190969,91284.0,91277.0,0.01095566]
[1765163182392,0.01095518,91281.0,91278.0,0.03457554]
[1765163182592,0.01095518,91281.0,91278.0,0.02362]
[1765163182811,0.01095518,91281.0,91280.0,0.01528]
[1765163183033,0.01095518,91281.0,91280.0,0.05252644]
[1765163184017,0.01095518,91281.0,91280.0,0.01528]
[1765163184568,0.01095518,91281.0,91280.0,0.03328]
[1765163185049,0.01195518,91281.0,91280.0,0.01728]
[1765163185259,0.01195518,91281.0,91280.0,0.03828]
[1765163186329,0.01095518,91281.0,91280.0,0.03628]
[1765163186757,0.01095518,91281.0,91280.0,0.03828]
[1765163188504,0.01095518,91281.0,91280.0,0.023]
[1765163189271,0.02737725,91281.0,91280.0,0.023]
[1765163189851,0.01095614,91273.0,91270.0,0.0115]
[1765163190331,0.01095662,91269.0,91262.0,0.02245746]
[1765163190462,0.01095662,91269.0,91264.0,0.01095722]
[1765163190463,0.01095674,91268.0,91264.0,0.01095722]
[1765163190844,0.01095674,91268.0,91260.0,0.0109577]
[1765163190845,0.21915244,91261.0,91259.0,0.00038994]
[1765163191494,0.21915244,91261.0,91260.0,0.0389]
[1765163191690,0.01095746,91262.0,91260.0,0.0389]
[1765163191907,0.01095698,91266.0,91261.0,0.04985758]
[1765163192129,0.01095698,91266.0,91261.0,0.03457758]
[1765163192342,0.01095686,91267.0,91266.0,0.01528]
[1765163192785,0.01095686,91267.0,91266.0,0.0389]
[1765163193211,0.0109565,91270.0,91266.0,0.04985698]
[1765163193400,0.0109565,91270.0,91269.0,0.02678]
[1765163193818,0.0109565,91270.0,91269.0,0.0504]
[1765163194731,0.001,91270.0,91269.0,0.0504]
[1765163194950,0.01095626,91272.0,91269.0,0.0504]
[1765163195153,0.01095626,91272.0,91271.0,0.01528]
[1765163195358,0.01095626,91272.0,91271.0,0.06962614]
[1765163195560,0.01095626,91272.0,91271.0,0.09324614]
[1765163196197,0.01095614,91273.0,91271.0,0.09324614]
[1765163196397,0.01095614,91273.0,91272.0,0.01528]
[1765163196619,0.01095614,91273.0,91272.0,0.0389]
[1765163197044,0.01095566,91277.0,91272.0,0.32876219]
[1765163197258,0.0109559,91275.0,91273.0,0.02362]
[1765163197667,0.0109559,91275.0,91274.0,0.01704058]
[1765163198073,0.0109559,91275.0,91274.0,0.04066058]
[1765163198570,0.23006956,91277.0,91274.0,0.0516166]
[1765163198571,0.01095566,91277.0,91274.0,0.0516166]
[1765163198777,0.01095542,91279.0,91276.0,0.01528]
[1765163198977,0.01095542,91279.0,91275.0,0.0345759]
[1765163199177,0.0109553,91280.0,91279.0,0.01528]
[1765163199581,0.0109553,91280.0,91279.0,0.0389]
[1765163200331,0.0109553,91280.0,91279.0,0.0569]
[1765163200560,0.0109553,91280.0,91279.0,0.11209194]
[1765163200958,0.0109553,91280.0,91279.0,0.11309194]
[1765163202656,0.0109553,91280.0,91279.0,0.0579]
[1765163202971,0.01095506,91282.0,91279.0,0.06956]
[1765163203252,0.01095506,91282.0,91281.0,0.0164]
[1765163204436,0.01095506,91282.0,91281.0,0.0344]
[1765163206018,0.01095506,91282.0,91281.0,0.0354]
[1765163206401,0.01095506,91282.0,91281.0,0.0677775]
[1765163206595,0.01095506,91282.0,91281.0,0.0354]
[1765163206750,0.01095506,91282.0,91281.0,0.019]
[1765163209803,0.01095506,91282.0,91281.0,0.02055506]
[1765163214780,0.01095506,91282.0,91281.0,0.03221506]
[1765163215113,0.01095506,91282.0,91281.0,0.04861506]
[1765163215680,0.2300491,91285.0,91281.0,0.05814071]
[1765163215877,0.01095482,91284.0,91282.0,0.0164]
[1765163216079,0.23005357,91284.0,91282.0,0.0164]
[1765163216460,0.23005357,91284.0,91283.0,0.0164]
[1765163216665,0.01095482,91284.0,91283.0,0.0164]
[1765163217722,0.01095482,91284.0,91283.0,0.0334]
[1765163217949,0.01095482,91284.0,91283.0,0.049277]
[1765163218514,0.01095482,91284.0,91283.0,0.050277]
[1765163218896,0.01095482,91284.0,91283.0,0.0344]
[1765163219102,0.01732,91286.0,91284.0,0.21909644]
[1765163219326,0.01245701,91291.0,91287.0,0.01095446]
[1765163219538,0.01245701,91291.0,91290.0,0.02806]
[1765163220171,0.01095374,91293.0,91290.0,0.05279]
[1765163220375,0.01095374,91293.0,91292.0,0.0164]
[1765163221001,0.01732,91295.0,91292.0,0.04113]
[1765163221206,0.0109523,91305.0,91301.0,0.01095278]
[1765163221419,0.0109523,91305.0,91299.0,0.02735302]
[1765163221639,0.0109517,91310.0,91297.0,0.2300185]
[1765163221640,0.01095098,91316.0,91309.0,0.01166]
[1765163221845,0.01095098,91316.0,91311.0,0.0164]
[1765163221846,0.21902835,91313.0,91311.0,0.0164]
[1765163222081,0.01095098,91316.0,91311.0,0.08371671]
[1765163222275,0.01094882,91334.0,91328.0,0.01094954]
[1765163222486,0.21898756,91330.0,91328.0,0.01128]
[1765163222707,0.0109499,91325.0,91322.0,0.0286]
[1765163222919,0.25926121,91340.0,91322.0,0.0286]
[1765163222920,0.01094798,91341.0,91337.0,0.01094846]
[1765163223155,0.01094858,91336.0,91330.0,0.23505609]
[1765163223349,0.01094882,91334.0,91331.0,0.02269]
[1765163223554,0.01094858,91336.0,91333.0,0.02701894]
[1765163223756,0.01094774,91343.0,91337.0,0.01094846]
[1765163224039,0.22991803,91337.0,91335.0,0.02269]
[1765163224487,0.22991803,91337.0,91336.0,0.02735]
[1765163224697,0.22991803,91337.0,91331.0,0.01094918]
[1765163224698,0.21898369,91331.0,91330.0,0.00311692]
[1765163224901,0.21898369,91331.0,91330.0,0.00011692]
[1765163225102,0.22048672,91331.0,91330.0,0.00011692]
[1765163225892,0.22048672,91331.0,91330.0,0.03887692]
[1765163225893,0.00150303,91331.0,91330.0,0.03887692]
[1765163226087,0.00150303,91331.0,91330.0,0.00011692]
[1765163226531,0.02369902,91331.0,91330.0,0.01911692]
[1765163227028,0.02369902,91331.0,91330.0,0.00111692]
[1765163227257,0.02369902,91331.0,91330.0,0.01811692]
[1765163227590,0.02369902,91331.0,91330.0,0.01911692]
[1765163228455,0.02369902,91331.0,91330.0,0.00111692]
[1765163228660,0.02369902,91331.0,91330.0,0.01811692]
[1765163229170,1.34669902,91331.0,91330.0,0.01811692]
[1765163231434,1.45640408,91331.0,91330.0,0.01811692]
[1765163231651,1.46660308,91331.0,91330.0,0.01811692]
[1765163232477,1.46660308,91331.0,91330.0,0.00011692]
[1765163232959,1.48460308,91331.0,91330.0,0.00111692]
[1765163235277,1.48460496,91331.0,91330.0,0.00111692]
[1765163236525,1.3748999,91331.0,91330.0,0.00111692]
[1765163236727,1.34250303,91331.0,91330.0,0.00111692]
[1765163237184,1.01950303,91331.0,91330.0,0.01622692]
[1765163237388,1.018,91331.0,91330.0,0.04081692]
[1765163237765,1.009,91331.0,91330.0,0.04081692]
[1765163238437,1.015,91331.0,91330.0,0.04081692]
[1765163238570,1.0,91331.0,91330.0,0.03981692]
[1765163238771,1.008,91331.0,91330.0,0.04081692]
[1765163239110,1.008,91331.0,91330.0,0.09210644]
[1765163239321,1.0,91331.0,91330.0,0.09110644]
[1765163239559,1.0,91331.0,91330.0,0.06181692]
[1765163240259,1.0,91331.0,91330.0,0.06381692]
[1765163241137,1.0,91331.0,91330.0,0.28280301]
[1765163243793,1.0,91331.0,91330.0,0.30499501]
[1765163244096,1.0,91331.0,91330.0,0.38260171]
[1765163245176,1.0,91331.0,91330.0,0.37772971]
[1765163245735,1.0,91331.0,91330.0,0.35372971]
[1765163245958,1.001,91331.0,91330.0,0.28012301]
[1765163246166,1.002,91331.0,91330.0,0.03011692]
[1765163246339,1.00350303,91331.0,91330.0,0.03011692]
[1765163247365,1.00250303,91331.0,91330.0,0.06581692]
[1765163247599,1.00150303,91331.0,91330.0,0.07270118]
[1765163247793,1.00150303,91331.0,91330.0,0.07370118]
[1765163248095,1.0,91331.0,91330.0,0.08270118]
[1765163248306,1.0,91331.0,91330.0,0.07270118]
[1765163248642,1.0,91331.0,91330.0,0.08470118]
[1765163248767,1.0,91331.0,91330.0,0.07370118]
[1765163249173,1.0,91331.0,91330.0,0.10789318]
[1765163249383,1.0,91331.0,91330.0,0.10989318]
[1765163250318,1.0,91331.0,91330.0,0.08770118]
[1765163250683,1.0,91331.0,91330.0,0.07470118]
[1765163250882,1.0,91331.0,91330.0,0.08770118]
[1765163251424,1.0,91331.0,91330.0,0.09070118]
[1765163252184,1.0,91331.0,91330.0,0.05781692]
[1765163253007,1.01,91331.0,91330.0,0.05781692]
[1765163253463,1.01,91331.0,91330.0,0.07497134]
[1765163253854,1.01,91331.0,91330.0,0.05781692]
[1765163254223,1.01,91331.0,91330.0,0.09716481]
[1765163254430,1.01,91331.0,91330.0,0.1615595]
[1765163254656,1.01,91331.0,91330.0,0.1243675]
[1765163255194,1.01,91331.0,91330.0,0.1253675]
[1765163255393,1.01,91331.0,91330.0,0.1233675]
[1765163255571,1.01,91331.0,91330.0,0.1303675]
[1765163255777,1.01,91331.0,91330.0,0.1283675]
[1765163257202,1.01,91331.0,91330.0,0.1313675]
[1765163257388,1.00924055,91331.0,91330.0,0.1313675]
[1765163257792,1.00924055,91331.0,91330.0,0.14854579]
[1765163258018,1.00924055,91331.0,91330.0,0.1313675]
[1765163259685,1.00924055,91331.0,91330.0,0.04981692]
[1765163261233,1.01074358,91331.0,91330.0,0.01011692]
[1765163261575,1.01074358,91331.0,91330.0,0.00711692]
[1765163261980,1.01074358,91331.0,91330.0,0.00211692]
[1765163262195,1.01074358,91331.0,91330.0,0.00311692]
[1765163262410,1.01074358,91331.0,91330.0,0.00111692]
[1765163263034,1.36616968,91331.0,91330.0,0.00111692]
[1765163263450,1.34397369,91331.0,91330.0,0.00111692]
[1765163263864,1.36616968,91331.0,91330.0,0.00211692]
[1765163264020,1.34397369,91331.0,91330.0,0.00111692]
[1765163264225,1.34397369,91331.0,91330.0,0.00011692]
[1765163264430,1.34397369,91331.0,91330.0,0.00111692]
[1765163264846,1.36616968,91331.0,91330.0,0.00111692]
[1765163267569,1.02097369,91331.0,91330.0,0.01706692]
[1765163267770,1.01074358,91331.0,91330.0,0.04086692]
[1765163268203,1.01074358,91331.0,91330.0,0.06797154]
[1765163268569,1.00924055,91331.0,91330.0,0.06797154]
[1765163268772,1.00924055,91331.0,91330.0,0.09016354]
[1765163269638,1.00924055,91331.0,91330.0,0.06697154]
[1765163270110,1.00924055,91331.0,91330.0,0.06997154]
[1765163270474,1.00924055,91331.0,91330.0,0.07297154]
[1765163270936,1.00924055,91331.0,91330.0,0.07597154]
[1765163275109,1.00924055,91331.0,91330.0,0.10526494]
[1765163276058,1.00924055,91331.0,91330.0,0.00911692]
[1765163276244,1.01074358,91331.0,91330.0,0.00911692]
[1765163276614,1.03293957,91331.0,91330.0,0.00911692]
[1765163276815,1.01074358,91331.0,91330.0,0.00911692]
[1765163277012,1.01074358,91331.0,91330.0,0.00611692]
[1765163277219,1.01074358,91331.0,91330.0,0.04186692]
[1765163277447,1.01074358,91331.0,91330.0,0.05217782]
[1765163277766,1.01074358,91331.0,91330.0,0.04186692]
[1765163278137,1.00924055,91331.0,91330.0,0.04186692]
[1765163278796,1.00924055,91331.0,91330.0,0.03986692]
[1765163279004,1.00924055,91331.0,91330.0,0.04086692]
[1765163279210,1.00924055,91331.0,91330.0,0.12693691]
[1765163279587,1.00924055,91331.0,91330.0,0.12593691]
[1765163279916,1.00924055,91331.0,91330.0,0.12793691]
[1765163280260,1.00924055,91331.0,91330.0,0.13193691]
[1765163280624,1.01074358,91331.0,91330.0,0.00611692]
[1765163280773,1.01074358,91331.0,91330.0,0.00911692]
[1765163281631,1.03293957,91331.0,91330.0,0.00311692]
[1765163281854,1.03293957,91331.0,91330.0,0.00011692]
[1765163282802,1.37236164,91331.0,91330.0,0.00011692]
[1765163283001,1.38260332,91331.0,91330.0,0.00011692]
[1765163284013,1.36040733,91331.0,91330.0,0.00011692]
[1765163284217,1.35016565,91331.0,91330.0,0.00011692]
[1765163284419,1.36040413,91331.0,91330.0,0.00011692]
[1765163286966,1.38260012,91331.0,91330.0,0.00011692]
[1765163288315,1.38860012,91331.0,91330.0,0.00111692]
[1765163289057,1.38260012,91331.0,91330.0,0.00011692]
[1765163289227,1.39260012,91331.0,91330.0,0.00111692]
[1765163289832,1.38260012,91331.0,91330.0,0.00011692]
[1765163290131,1.37236164,91331.0,91330.0,0.00011692]
[1765163290334,1.38259635,91331.0,91330.0,0.00011692]
[1765163291529,1.39159635,91331.0,91330.0,0.00111692]
[1765163292114,1.38259635,91331.0,91330.0,0.00011692]
[1765163292340,1.38259635,91331.0,91330.0,0.00111692]
[1765163292571,1.39059635,91331.0,91330.0,0.00111692]
[1765163293907,1.36840036,91331.0,91330.0,0.00111692]
[1765163294514,1.35816565,91331.0,91330.0,0.00111692]
[1765163294717,1.36839785,91331.0,91330.0,0.00111692]
[1765163295941,1.39059384,91331.0,91330.0,0.00111692]
[1765163296356,1.5002989,91331.0,91330.0,0.00111692]
[1765163297756,0.62671226,91327.0,91326.0,0.00023461]
[1765163298001,0.65426446,91327.0,91326.0,0.00035157]
[1765163298386,0.65426446,91327.0,91291.0,0.01211]
[1765163298387,0.21907724,91292.0,91291.0,0.01211]
[1765163298586,0.21907724,91292.0,91291.0,0.01222699]
[1765163299187,0.21907724,91292.0,91291.0,0.00011699]
[1765163300000,0.21907724,91292.0,91291.0,0.00911699]
[1765163300164,0.21907724,91292.0,91291.0,0.00311699]
[1765163300380,0.21907724,91292.0,91291.0,0.01814699]
[1765163300584,0.21907724,91292.0,91291.0,0.02564517]
[1765163301000,0.21907724,91292.0,91291.0,0.02264517]
[1765163301203,0.22007724,91292.0,91291.0,0.00961517]
[1765163301446,0.22007724,91292.0,91291.0,0.00311699]